[Event "44th Chess Olympiad Open 2022"]
[Site "Chennai"]
[Date "2022.08.07"]
[Round "9.61"]
[White "Rafael Chirinza"]
[Black "Pinales Roussel, Gabriel"]
[Result "1-0"]
[WhiteElo "1725"]
[BlackElo "1973"]
[Annotator "NA RC"]
[PlyCount "82"]
[EventDate "2022.??.??"]
[TimeControl "60"]

1. d4 {[%emt 0:00:04]} d5 {[%emt 0:00:08]} 2. Nf3 {[%emt 0:00:03]} e6 {[%emt 0:
00:00]} 3. Bf4 {[%emt 0:00:27]} Nf6 {[%emt 0:00:43]} 4. e3 {[%emt 0:00:24]} Bd6
{[%emt 0:00:38]} 5. Bg3 {[%emt 0:00:22]} O-O {[%emt 0:03:13]} 6. Bd3 {[%emt 0:
00:00]} c5 {[%emt 0:00:19]} 7. c3 {[%emt 0:00:50]} Nc6 {[%emt 0:01:25]} 8. Nbd2
{[%emt 0:01:18]} cxd4 {[%emt 0:02:38]} 9. exd4 {[%emt 0:00:09]} h6 {[%emt 0:00:
00]} 10. O-O {[%emt 0:00:18]} Bxg3 {[%emt 0:02:29]} 11. hxg3 {[%emt 0:00:02]}
a6 {[%emt 0:01:22]} 12. a4 {[%emt 0:00:52]} Ne8 {[%emt 0:00:51]} 13. Re1 {
[%emt 0:00:45]} Nd6 {[%emt 0:02:53]} 14. Nf1 {[%emt 0:02:05]} Bd7 {[%emt 0:00:
00]} 15. Ne3 {[%emt 0:01:02]} b5 {[%emt 0:04:21]} 16. axb5 {[%emt 0:04:00]}
axb5 {[%emt 0:00:07]} 17. Qb3 {[%emt 0:01:44]} Rb8 {[%emt 0:03:26]} 18. Ra6 {
[%emt 0:03:01]} Nc4 {[%emt 0:07:32]} 19. Ra2 {[%emt 0:03:29]} Qc7 {[%emt 0:00:
00]} 20. Ng4 {[%emt 0:02:53]} Rfc8 {[%emt 0:09:52]} 21. Nge5 {[%emt 0:07:55]}
N4xe5 {[%emt 0:00:48]} 22. Nxe5 {[%emt 0:00:45]} Nxe5 {[%emt 0:00:05]} 23. Rxe5
{[%emt 0:00:25]} b4 {[%emt 0:00:06]} 24. Re3 {[%emt 0:04:00]} bxc3 {[%emt 0:00:
00]} 25. Qxc3 {[%emt 0:00:13]} Qb6 {[%emt 0:00:11]} 26. Qd2 {[%emt 0:00:53]}
Kf8 {[%emt 0:00:22]} 27. Bf1 {[%emt 0:02:10]} Qb4 {[%emt 0:07:49]} 28. Rc3 {
[%emt 0:01:55]} Rxc3 {[%emt 0:02:25]} 29. bxc3 {[%emt 0:01:46]} Qb1 {[%emt 0:
00:00]} 30. Rc2 {[%emt 0:01:43]} Ba4 {[%emt 0:04:29]} 31. Rc1 {[%emt 0:00:29]}
Rb2 {[%emt 0:04:26]} 32. Qf4 {[%emt 0:02:14]} Qa2 {[%emt 0:05:21]} 33. c4 {
[%emt 0:02:59]} dxc4 {[%emt 0:09:23]} 34. Bxc4 {[%emt 0:06:03]} Qa3 {[%emt 0:
00:00]} 35. Bxe6 {[%emt 0:02:12]} Qe7 {[%emt 0:00:07]} 36. d5 {[%emt 0:07:44]}
Bc2 {[%emt 0:00:27]} 37. Bg4 {[%emt 0:04:16]} g5 {[%emt 0:00:29]} 38. Qd4 {
[%emt 0:01:09]} Qb7 {[%emt 0:00:25]} 39. Qh8+ {[%emt 0:02:15]} Ke7 {[%emt 0:00:
00]} 40. Re1+ {[%emt 0:00:32]} Kd6 {[%emt 0:00:05]} 41. Qf8+ {[%emt 0:30:27]}
Kxd5 {[%emt 0:00:25]} 1-0

[Event "44th Chess Olympiad Open 2022"]
[Site "Chennai"]
[Date "2022.08.07"]
[Round "9.62"]
[White "Rongwane, Gomolemo"]
[Black "Al-Hajiri, Bader"]
[Result "1-0"]
[WhiteElo "2033"]
[BlackElo "2011"]
[Annotator "NA RC"]
[PlyCount "71"]
[EventDate "2022.??.??"]
[TimeControl "60"]

1. d4 {[%emt 0:00:03]} d5 {[%emt 0:00:14]} 2. Nf3 {[%emt 0:00:49]} Nf6 {
[%emt 0:00:29]} 3. c4 {[%emt 0:00:27]} c6 {[%emt 0:00:47]} 4. Qc2 {[%emt 0:00:
00]} dxc4 {[%emt 0:00:53]} 5. Qxc4 {[%emt 0:00:17]} Bf5 {[%emt 0:00:16]} 6. Nc3
{[%emt 0:02:51]} e6 {[%emt 0:00:29]} 7. Bg5 {[%emt 0:06:25]} Qb6 {[%emt 0:00:
00]} 8. Bc1 {[%emt 0:03:10]} Nbd7 {[%emt 0:04:42]} 9. Nh4 {[%emt 0:04:17]} Bb4
{[%emt 0:13:16]} 10. Nxf5 {[%emt 0:01:01]} exf5 {[%emt 0:00:08]} 11. e3 {
[%emt 0:01:48]} O-O {[%emt 0:08:21]} 12. Bd3 {[%emt 0:00:10]} g6 {[%emt 0:00:
00]} 13. O-O {[%emt 0:00:37]} Rfe8 {[%emt 0:00:29]} 14. a3 {[%emt 0:02:26]} Bd6
{[%emt 0:00:33]} 15. b4 {[%emt 0:02:23]} a5 {[%emt 0:05:26]} 16. Rb1 {[%emt 0:
00:00]} axb4 {[%emt 0:00:33]} 17. axb4 {[%emt 0:00:25]} Qc7 {[%emt 0:04:04]}
18. g3 {[%emt 0:01:26]} b5 {[%emt 0:00:16]} 19. Qb3 {[%emt 0:00:21]} Nb6 {
[%emt 0:00:05]} 20. Bd2 {[%emt 0:00:20]} Ra6 {[%emt 0:04:33]} 21. Rfc1 {
[%emt 0:09:39]} Qd7 {[%emt 0:01:11]} 22. Ra1 {[%emt 0:07:30]} Qa7 {[%emt 0:00:
00]} 23. Ra5 {[%emt 0:00:54]} Qb7 {[%emt 0:12:32]} 24. Rca1 {[%emt 0:13:11]}
Rxa5 {[%emt 0:06:14]} 25. bxa5 {[%emt 0:01:02]} Nbd5 {[%emt 0:00:24]} 26. Nxd5
{[%emt 0:09:10]} Nxd5 {[%emt 0:00:19]} 27. Bf1 {[%emt 0:03:37]} Ra8 {[%emt 0:
00:00]} 28. Bg2 {[%emt 0:03:13]} b4 {[%emt 0:04:53]} 29. Bf1 {[%emt 0:01:24]}
Nc7 {[%emt 0:02:17]} 30. Bc4 {[%emt 0:00:36]} Nb5 {[%emt 0:00:24]} 31. Ra4 {
[%emt 0:01:43]} Rb8 {[%emt 0:07:19]} 32. Bxb4 {[%emt 0:02:16]} Bc7 {[%emt 0:00:
00]} 33. a6 {[%emt 0:02:56]} Qc8 {[%emt 0:00:53]} 34. Bxf7+ {[%emt 0:00:46]}
Kg7 {[%emt 0:00:04]} 35. Qe6 {[%emt 0:00:16]} Qd8 {[%emt 0:01:34]} 36. Be7 {
[%emt 0:00:19]} 1-0

[Event "44th Chess Olympiad Open 2022"]
[Site "Chennai"]
[Date "2022.08.07"]
[Round "9.62"]
[White "Monnaatsheko, Keletshabile"]
[Black "Alhejab, Meshal"]
[Result "1-0"]
[WhiteElo "2014"]
[BlackElo "1732"]
[Annotator "NA"]
[PlyCount "85"]
[EventDate "2022.??.??"]
[TimeControl "60"]

1. d4 {[%emt 0:00:12]} Nf6 {[%emt 0:00:04]} 2. e3 {[%emt 0:01:04]} b6 {[%emt 0:
00:00]} 3. Nf3 {[%emt 0:01:00]} e6 {[%emt 0:01:05]} 4. Bd3 {[%emt 0:00:21]} Bb7
{[%emt 0:00:09]} 5. O-O {[%emt 0:00:28]} d5 {[%emt 0:01:53]} 6. Nbd2 {[%emt 0:
00:00]} Be7 {[%emt 0:01:08]} 7. Ne5 {[%emt 0:00:17]} Nbd7 {[%emt 0:00:15]} 8.
f4 {[%emt 0:00:29]} c5 {[%emt 0:03:21]} 9. c3 {[%emt 0:00:18]} Qc7 {[%emt 0:00:
00]} 10. Qf3 {[%emt 0:00:18]} g6 {[%emt 0:09:53]} 11. a4 {[%emt 0:00:46]} h5 {
[%emt 0:15:01]} 12. Qh3 {[%emt 0:04:45]} Rf8 {[%emt 0:19:46]} 13. a5 {[%emt 0:
00:00]} bxa5 {[%emt 0:13:27]} 14. Qf3 {[%emt 0:03:44]} O-O-O {[%emt 0:04:52]}
15. Qd1 {[%emt 0:02:35]} Nxe5 {[%emt 0:02:03]} 16. fxe5 {[%emt 0:00:30]} Ng4 {
[%emt 0:00:33]} 17. Nf3 {[%emt 0:00:20]} Bc6 {[%emt 0:06:24]} 18. h3 {[%emt 0:
00:00]} Nh6 {[%emt 0:00:08]} 19. e4 {[%emt 0:08:09]} Ng8 {[%emt 0:00:15]} 20.
exd5 {[%emt 0:00:45]} Bxd5 {[%emt 0:00:44]} 21. Be3 {[%emt 0:03:11]} f5 {
[%emt 0:02:29]} 22. Qa4 {[%emt 0:04:11]} f4 {[%emt 0:00:10]} 23. Bf2 {[%emt 0:
00:00]} g5 {[%emt 0:00:30]} 24. Qxa5 {[%emt 0:01:48]} g4 {[%emt 0:00:32]} 25.
Nd2 {[%emt 0:08:26]} Qxa5 {[%emt 0:00:40]} 26. Rxa5 {[%emt 0:00:14]} g3 {
[%emt 0:00:05]} 27. Be1 {[%emt 0:02:08]} cxd4 {[%emt 0:00:07]} 28. cxd4 {
[%emt 0:01:11]} Rd7 {[%emt 0:02:11]} 29. Nb1 {[%emt 0:05:59]} Kb8 {[%emt 0:00:
00]} 30. Bb5 {[%emt 0:05:21]} Rb7 {[%emt 0:00:20]} 31. Na3 {[%emt 0:12:03]} Nh6
{[%emt 0:00:29]} 32. Bd2 {[%emt 0:03:26]} Bxa3 {[%emt 0:00:54]} 33. bxa3 {
[%emt 0:01:30]} Rc8 {[%emt 0:00:00]} 34. Ba6 {[%emt 0:08:08]} Rc2 {[%emt 0:00:
00]} 35. Rxd5 {[%emt 0:00:59]} exd5 {[%emt 0:00:47]} 36. Bxf4 {[%emt 0:04:12]}
Re7 {[%emt 0:02:02]} 37. e6+ {[%emt 0:00:39]} Rcc7 {[%emt 0:00:23]} 38. Bxh6 {
[%emt 0:01:04]} Rc6 {[%emt 0:00:16]} 39. Bf4+ {[%emt 0:05:43]} Ka8 {[%emt 0:00:
00]} 40. Rb1 {[%emt 0:00:39]} Rb6 {[%emt 0:00:01]} 41. Rxb6 {[%emt 0:30:47]}
axb6 {[%emt 0:30:05]} 42. Bc8 {[%emt 0:00:35]} h4 {[%emt 0:00:07]} 43. Bd7 {
[%emt 0:01:13]} 1-0

[Event "44th Chess Olympiad Open 2022"]
[Site "Chennai"]
[Date "2022.08.07"]
[Round "9.62"]
[White "Hashem, Khaled"]
[Black "Oratile, Kgotlane"]
[Result "1/2-1/2"]
[WhiteElo "1870"]
[BlackElo "2024"]
[Annotator "NA RC"]
[PlyCount "140"]
[EventDate "2022.??.??"]
[TimeControl "60"]

1. d4 {[%emt 0:00:01]} Nf6 {[%emt 0:00:10]} 2. c4 {[%emt 0:00:05]} g6 {[%emt 0:
00:00]} 3. Nc3 {[%emt 0:00:03]} Bg7 {[%emt 0:00:05]} 4. e4 {[%emt 0:00:04]} d6
{[%emt 0:00:06]} 5. f3 {[%emt 0:00:22]} O-O {[%emt 0:00:17]} 6. Be3 {[%emt 0:
00:00]} e5 {[%emt 0:00:19]} 7. dxe5 {[%emt 0:15:26]} dxe5 {[%emt 0:00:54]} 8.
Qxd8 {[%emt 0:00:15]} Rxd8 {[%emt 0:00:07]} 9. Bg5 {[%emt 0:00:03]} c6 {
[%emt 0:00:46]} 10. g3 {[%emt 0:11:12]} Be6 {[%emt 0:01:01]} 11. b3 {[%emt 0:
00:00]} Nbd7 {[%emt 0:01:07]} 12. Be3 {[%emt 0:16:48]} Bf8 {[%emt 0:00:29]} 13.
Nge2 {[%emt 0:06:17]} Nc5 {[%emt 0:10:42]} 14. Nc1 {[%emt 0:00:53]} a5 {
[%emt 0:02:55]} 15. Be2 {[%emt 0:09:55]} Rd7 {[%emt 0:10:22]} 16. Kf2 {[%emt 0:
00:00]} Rad8 {[%emt 0:04:04]} 17. Rd1 {[%emt 0:01:52]} Rxd1 {[%emt 0:07:30]}
18. Nxd1 {[%emt 0:01:01]} Nfd7 {[%emt 0:03:37]} 19. Nd3 {[%emt 0:07:03]} Nxd3+
{[%emt 0:03:06]} 20. Bxd3 {[%emt 0:00:05]} Bc5 {[%emt 0:00:06]} 21. Ke2 {
[%emt 0:02:58]} Bxe3 {[%emt 0:00:55]} 22. Nxe3 {[%emt 0:00:26]} Nc5 {[%emt 0:
00:00]} 23. Rd1 {[%emt 0:00:41]} Kf8 {[%emt 0:00:14]} 24. Bc2 {[%emt 0:00:31]}
Ra8 {[%emt 0:00:52]} 25. f4 {[%emt 0:02:57]} f6 {[%emt 0:01:35]} 26. Kf3 {
[%emt 0:07:55]} Ke7 {[%emt 0:01:34]} 27. g4 {[%emt 0:02:08]} exf4 {[%emt 0:00:
00]} 28. Kxf4 {[%emt 0:00:11]} Nd7 {[%emt 0:00:26]} 29. Bd3 {[%emt 0:02:44]}
Ne5 {[%emt 0:02:06]} 30. Be2 {[%emt 0:00:03]} h6 {[%emt 0:00:20]} 31. Kg3 {
[%emt 0:01:21]} Rd8 {[%emt 0:03:35]} 32. Rxd8 {[%emt 0:00:29]} Kxd8 {[%emt 0:
00:00]} 33. Nc2 {[%emt 0:02:05]} Ke7 {[%emt 0:00:35]} 34. h3 {[%emt 0:02:05]}
Kd6 {[%emt 0:01:33]} 35. Kf2 {[%emt 0:01:02]} Kc5 {[%emt 0:03:04]} 36. Ke3 {
[%emt 0:08:53]} Kd6 {[%emt 0:10:03]} 37. Kd4 {[%emt 0:00:00]} Nf7 {[%emt 0:00:
00]} 38. c5+ {[%emt 0:00:00]} Ke7 {[%emt 0:00:24]} 39. h4 {[%emt 0:00:00]} g5 {
[%emt 0:01:17]} 40. h5 {[%emt 0:00:00]} Ne5 {[%emt 0:00:09]} 41. Ne3 {[%emt 0:
00:00]} Kd8 {[%emt 0:30:51]} 42. Nf5 {[%emt 0:00:00]} Bxf5 {[%emt 0:00:00]} 43.
exf5 {[%emt 0:00:00]} Kc7 {[%emt 0:00:00]} 44. a3 {[%emt 0:00:00]} b6 {[%emt 0:
00:00]} 45. b4 {[%emt 0:00:00]} Nd7 {[%emt 0:00:00]} 46. Bf3 {[%emt 0:00:00]}
axb4 {[%emt 0:00:00]} 47. axb4 {[%emt 0:00:00]} Ne5 {[%emt 0:00:00]} 48. Be2 {
[%emt 0:00:00]} bxc5+ {[%emt 0:00:00]} 49. bxc5 {[%emt 0:00:00]} Kb7 {[%emt 0:
00:00]} 50. Kc3 {[%emt 0:00:00]} Nd7 {[%emt 0:00:00]} 51. Kb4 {[%emt 0:00:00]}
Kc7 {[%emt 0:00:00]} 52. Kc4 {[%emt 0:00:00]} Kb7 {[%emt 0:00:00]} 53. Kb4 {
[%emt 0:00:00]} Nb8 {[%emt 0:00:00]} 54. Ka5 {[%emt 0:00:00]} Ka7 {[%emt 0:00:
00]} 55. Bd3 {[%emt 0:00:00]} Nd7 {[%emt 0:00:00]} 56. Kb4 {[%emt 0:00:00]} Kb7
{[%emt 0:00:00]} 57. Bf1 {[%emt 0:00:00]} Nb8 {[%emt 0:00:00]} 58. Ka5 {
[%emt 0:00:00]} Nd7 {[%emt 0:00:00]} 59. Kb4 {[%emt 0:00:00]} Ne5 {[%emt 0:00:
00]} 60. Be2 {[%emt 0:00:00]} Nf7 {[%emt 0:00:00]} 61. Ka5 {[%emt 0:00:00]} Kc7
{[%emt 0:00:00]} 62. Kb4 {[%emt 0:00:00]} Ne5 {[%emt 0:01:55]} 63. Kc3 {
[%emt 0:00:00]} Kd8 {[%emt 0:00:12]} 64. Kd4 {[%emt 0:00:00]} Nd7 {[%emt 0:00:
00]} 65. Kc4 {[%emt 0:00:00]} Kc7 {[%emt 0:00:26]} 66. Kb4 {[%emt 0:00:00]} Kb7
{[%emt 0:01:57]} 67. Bf1 {[%emt 0:00:00]} Nb8 {[%emt 0:00:38]} 68. Ka5 {
[%emt 0:00:00]} Ka7 {[%emt 0:00:24]} 69. Bd3 {[%emt 0:00:00]} Nd7 {[%emt 0:00:
00]} 70. Kb4 {[%emt 0:00:00]} Ne5 {[%emt 0:02:26]} 1/2-1/2

[Event "44th Chess Olympiad Open 2022"]
[Site "Chennai"]
[Date "2022.08.07"]
[Round "9.62"]
[White "Al Ibrahim, Abdulrahman"]
[Black "Sabure, Bojosi"]
[Result "0-1"]
[WhiteElo "1822"]
[BlackElo "1966"]
[Annotator "NA"]
[PlyCount "105"]
[EventDate "2022.??.??"]
[TimeControl "60"]

1. e4 {[%emt 0:00:03]} g6 {[%emt 0:00:22]} 2. d4 {[%emt 0:00:09]} Bg7 {[%emt 0:
00:00]} 3. Nc3 {[%emt 0:00:10]} d6 {[%emt 0:00:33]} 4. Be2 {[%emt 0:00:07]} a6
{[%emt 0:00:27]} 5. a4 {[%emt 0:00:32]} Nd7 {[%emt 0:01:05]} 6. h4 {[%emt 0:00:
00]} c5 {[%emt 0:01:25]} 7. d5 {[%emt 0:11:03]} h5 {[%emt 0:02:01]} 8. Nh3 {
[%emt 0:00:52]} Ne5 {[%emt 0:01:44]} 9. Ng5 {[%emt 0:00:46]} Nh6 {[%emt 0:00:
00]} 10. O-O {[%emt 0:03:35]} Bd7 {[%emt 0:02:30]} 11. a5 {[%emt 0:05:52]} O-O
{[%emt 0:01:14]} 12. Bf4 {[%emt 0:03:42]} b6 {[%emt 0:04:15]} 13. axb6 {
[%emt 0:01:14]} Qxb6 {[%emt 0:00:09]} 14. Qd2 {[%emt 0:00:54]} Neg4 {[%emt 0:
00:00]} 15. Rab1 {[%emt 0:05:22]} Qb4 {[%emt 0:05:35]} 16. f3 {[%emt 0:04:17]}
Qd4+ {[%emt 0:05:06]} 17. Kh1 {[%emt 0:00:13]} Ne5 {[%emt 0:05:10]} 18. Ra1 {
[%emt 0:14:50]} Qxd2 {[%emt 0:02:53]} 19. Bxd2 {[%emt 0:00:05]} Rfb8 {[%emt 0:
00:00]} 20. b3 {[%emt 0:00:54]} Bc8 {[%emt 0:02:48]} 21. Ra5 {[%emt 0:02:05]}
Nd7 {[%emt 0:01:19]} 22. Rfa1 {[%emt 0:01:00]} Rb6 {[%emt 0:00:23]} 23. R1a2 {
[%emt 0:00:15]} Nb8 {[%emt 0:01:49]} 24. Na4 {[%emt 0:02:54]} Rb7 {[%emt 0:00:
00]} 25. Bc3 {[%emt 0:02:36]} f5 {[%emt 0:03:28]} 26. Bxg7 {[%emt 0:04:07]}
Kxg7 {[%emt 0:00:29]} 27. Nc3 {[%emt 0:00:36]} fxe4 {[%emt 0:01:16]} 28. Ncxe4
{[%emt 0:03:08]} Nf5 {[%emt 0:01:13]} 29. Bc4 {[%emt 0:02:35]} Nxh4 {[%emt 0:
00:00]} 30. Ne6+ {[%emt 0:01:04]} Bxe6 {[%emt 0:01:35]} 31. dxe6 {[%emt 0:00:
00]} Nc6 {[%emt 0:00:29]} 32. Rxa6 {[%emt 0:00:34]} Rxa6 {[%emt 0:00:07]} 33.
Rxa6 {[%emt 0:00:03]} Nb4 {[%emt 0:00:10]} 34. Ra8 {[%emt 0:01:03]} Nxc2 {
[%emt 0:00:35]} 35. Rd8 {[%emt 0:00:16]} Ra7 {[%emt 0:30:52]} 36. Rd7 {[%emt 0:
00:00]} Ra1+ {[%emt 0:00:15]} 37. Kh2 {[%emt 0:00:06]} Nf5 {[%emt 0:00:09]} 38.
g4 {[%emt 0:01:29]} hxg4 {[%emt 0:06:19]} 39. fxg4 {[%emt 0:00:11]} Re1 {
[%emt 0:00:23]} 40. gxf5 {[%emt 0:05:58]} Rxe4 {[%emt 0:00:40]} 41. Rxe7+ {
[%emt 0:30:11]} Kf6 {[%emt 0:32:03]} 42. Rf7+ {[%emt 0:00:10]} Kg5 {[%emt 0:00:
00]} 43. f6 {[%emt 0:05:42]} Ne3 {[%emt 0:00:34]} 44. Rd7 {[%emt 0:06:32]} Kxf6
{[%emt 0:00:32]} 45. Rxd6 {[%emt 0:03:32]} Nxc4 {[%emt 0:00:30]} 46. bxc4 {
[%emt 0:00:04]} Rxe6 {[%emt 0:01:02]} 47. Rd1 {[%emt 0:03:23]} Re4 {[%emt 0:00:
00]} 48. Rc1 {[%emt 0:01:00]} g5 {[%emt 0:00:28]} 49. Kg3 {[%emt 0:00:07]} g4 {
[%emt 0:00:10]} 50. Rc2 {[%emt 0:01:11]} Ke5 {[%emt 0:00:10]} 51. Rd2 {[%emt 0:
00:00]} Rxc4 {[%emt 0:00:16]} 52. Rd8 {[%emt 0:00:03]} Re4 {[%emt 0:00:42]} 53.
Ra8 {[%emt 0:03:11]} 0-1

[Event "44th Chess Olympiad Open 2022"]
[Site "Chennai"]
[Date "2022.08.07"]
[Round "9.63"]
[White "Van den Brink, Peter"]
[Black "Chinchilla, Alejandro Jose"]
[Result "0-1"]
[WhiteElo "2167"]
[BlackElo "2166"]
[Annotator "RC"]
[PlyCount "64"]
[EventDate "2022.??.??"]
[TimeControl "60"]

1. e4 {[%emt 0:00:04]} c5 {[%emt 0:00:08]} 2. c3 {[%emt 0:00:06]} Nf6 {[%emt 0:
00:00]} 3. e5 {[%emt 0:00:27]} Nd5 {[%emt 0:00:23]} 4. Nf3 {[%emt 0:01:02]} d6
{[%emt 0:00:09]} 5. d4 {[%emt 0:00:44]} cxd4 {[%emt 0:00:09]} 6. cxd4 {[%emt 0:
00:00]} Nc6 {[%emt 0:00:25]} 7. Bc4 {[%emt 0:00:41]} e6 {[%emt 0:00:17]} 8. O-O
{[%emt 0:00:25]} Be7 {[%emt 0:00:04]} 9. Qe2 {[%emt 0:01:13]} O-O {[%emt 0:00:
00]} 10. Rd1 {[%emt 0:01:13]} Na5 {[%emt 0:01:42]} 11. Bd3 {[%emt 0:00:59]} Nb4
{[%emt 0:00:34]} 12. Nc3 {[%emt 0:01:09]} Nxd3 {[%emt 0:00:12]} 13. Rxd3 {
[%emt 0:00:47]} b6 {[%emt 0:01:52]} 14. b4 {[%emt 0:02:36]} Nc4 {[%emt 0:07:12]
} 15. Ng5 {[%emt 0:03:14]} Bxg5 {[%emt 0:11:08]} 16. Bxg5 {[%emt 0:02:10]} Qxg5
{[%emt 0:01:38]} 17. Ne4 {[%emt 0:01:05]} Qf4 {[%emt 0:44:11]} 18. Rf3 {
[%emt 0:06:48]} Qg4 {[%emt 0:02:37]} 19. h3 {[%emt 0:08:19]} Qh4 {[%emt 0:00:
00]} 20. g3 {[%emt 0:22:06]} Qh5 {[%emt 0:03:02]} 21. g4 {[%emt 0:04:14]} Qg6 {
[%emt 0:01:20]} 22. Nf6+ {[%emt 0:11:14]} gxf6 {[%emt 0:00:32]} 23. Rxf6 {
[%emt 0:00:10]} Qg5 {[%emt 0:00:17]} 24. f4 {[%emt 0:01:44]} Qh4 {[%emt 0:00:
00]} 25. Kh2 {[%emt 0:00:43]} dxe5 {[%emt 0:00:47]} 26. fxe5 {[%emt 0:01:28]}
Qg5 {[%emt 0:01:34]} 27. Qxc4 {[%emt 0:01:01]} Qd2+ {[%emt 0:00:11]} 28. Kg3 {
[%emt 0:01:20]} Bb7 {[%emt 0:00:22]} 29. Qf1 {[%emt 0:08:45]} Qxd4 {[%emt 0:00:
00]} 30. Re1 {[%emt 0:00:09]} Rac8 {[%emt 0:00:35]} 31. Rf4 {[%emt 0:00:32]}
Rc3+ {[%emt 0:00:29]} 32. Kh4 {[%emt 0:00:12]} Qd3 {[%emt 0:00:58]} 0-1

[Event "44th Chess Olympiad Open 2022"]
[Site "Chennai"]
[Date "2022.08.07"]
[Round "9.63"]
[White "Gavarrete, Joel"]
[Black "Croes, Octavio"]
[Result "1-0"]
[WhiteElo "2035"]
[BlackElo "1794"]
[Annotator "NA RC"]
[PlyCount "61"]
[EventDate "2022.??.??"]
[TimeControl "60"]

1. e4 {[%emt 0:00:11]} c5 {[%emt 0:00:09]} 2. Nf3 {[%emt 0:00:23]} Nc6 {
[%emt 0:00:14]} 3. d4 {[%emt 0:01:50]} cxd4 {[%emt 0:00:11]} 4. Nxd4 {[%emt 0:
00:00]} Nf6 {[%emt 0:00:04]} 5. Nc3 {[%emt 0:00:22]} g6 {[%emt 0:00:25]} 6. Be2
{[%emt 0:03:55]} Bg7 {[%emt 0:03:18]} 7. Nb3 {[%emt 0:10:20]} O-O {[%emt 0:00:
00]} 8. g4 {[%emt 0:06:22]} d6 {[%emt 0:04:55]} 9. g5 {[%emt 0:03:29]} Nd7 {
[%emt 0:00:52]} 10. Be3 {[%emt 0:01:26]} Nb6 {[%emt 0:04:53]} 11. Qd2 {[%emt 0:
00:00]} Be6 {[%emt 0:08:34]} 12. O-O-O {[%emt 0:09:36]} Nc4 {[%emt 0:01:27]}
13. Bxc4 {[%emt 0:00:08]} Bxc4 {[%emt 0:00:06]} 14. h4 {[%emt 0:01:11]} Bxb3 {
[%emt 0:03:55]} 15. cxb3 {[%emt 0:02:01]} Qa5 {[%emt 0:07:13]} 16. Kb1 {
[%emt 0:00:41]} Qb4 {[%emt 0:02:37]} 17. Qd3 {[%emt 0:06:04]} Rfc8 {[%emt 0:00:
00]} 18. Nd5 {[%emt 0:06:48]} Qa5 {[%emt 0:01:29]} 19. a3 {[%emt 0:04:10]} Qd8
{[%emt 0:08:21]} 20. h5 {[%emt 0:01:10]} e6 {[%emt 0:06:01]} 21. Nf4 {[%emt 0:
00:00]} Bf8 {[%emt 0:08:11]} 22. hxg6 {[%emt 0:04:49]} hxg6 {[%emt 0:00:59]}
23. Qf1 {[%emt 0:03:38]} Qe7 {[%emt 0:06:15]} 24. Nd3 {[%emt 0:03:52]} e5 {
[%emt 0:02:00]} 25. Rh4 {[%emt 0:00:45]} Qe6 {[%emt 0:03:31]} 26. Qh1 {[%emt 0:
00:00]} Bg7 {[%emt 0:00:32]} 27. Rh7 {[%emt 0:00:51]} f5 {[%emt 0:03:58]} 28.
gxf6 {[%emt 0:00:57]} Qxf6 {[%emt 0:00:34]} 29. Bh6 {[%emt 0:02:24]} Bh8 {
[%emt 0:04:47]} 30. Rg1 {[%emt 0:00:54]} d5 {[%emt 0:01:01]} 31. Bg5 {[%emt 0:
00:00]} 1-0

[Event "44th Chess Olympiad Open 2022"]
[Site "Chennai"]
[Date "2022.08.07"]
[Round "9.63"]
[White "Chahin Godoy, Angel Eduardo"]
[Black "Stetsenko, Ilya"]
[Result "0-1"]
[WhiteElo "1844"]
[BlackElo "1683"]
[Annotator "NA"]
[PlyCount "88"]
[EventDate "2022.??.??"]
[TimeControl "60"]

1. e4 {[%emt 0:00:14]} c6 {[%emt 0:00:12]} 2. d4 {[%emt 0:00:28]} d5 {[%emt 0:
00:00]} 3. e5 {[%emt 0:00:30]} Bf5 {[%emt 0:00:07]} 4. Nf3 {[%emt 0:00:41]} e6
{[%emt 0:00:05]} 5. a3 {[%emt 0:00:05]} c5 {[%emt 0:00:04]} 6. dxc5 {[%emt 0:
00:00]} Bxc5 {[%emt 0:00:15]} 7. b4 {[%emt 0:00:25]} Bb6 {[%emt 0:00:37]} 8.
Bb2 {[%emt 0:00:23]} Ne7 {[%emt 0:00:15]} 9. Be2 {[%emt 0:01:19]} O-O {[%emt 0:
00:00]} 10. O-O {[%emt 0:00:25]} Qc7 {[%emt 0:04:00]} 11. Nc3 {[%emt 0:02:12]}
a6 {[%emt 0:00:34]} 12. Rc1 {[%emt 0:02:15]} Ba7 {[%emt 0:08:13]} 13. Bd3 {
[%emt 0:05:20]} Nd7 {[%emt 0:02:16]} 14. Bxf5 {[%emt 0:09:38]} Nxf5 {[%emt 0:
00:00]} 15. Qe2 {[%emt 0:00:28]} Nb6 {[%emt 0:17:05]} 16. Rcd1 {[%emt 0:21:55]}
Nc4 {[%emt 0:02:42]} 17. Bc1 {[%emt 0:00:13]} Rac8 {[%emt 0:09:18]} 18. Rd3 {
[%emt 0:07:28]} Ne7 {[%emt 0:02:23]} 19. Re1 {[%emt 0:06:14]} Ng6 {[%emt 0:00:
00]} 20. g3 {[%emt 0:11:27]} Bb8 {[%emt 0:05:26]} 21. Bf4 {[%emt 0:01:18]} Nxa3
{[%emt 0:11:01]} 22. Be3 {[%emt 0:05:05]} Nc4 {[%emt 0:00:28]} 23. Bc5 {
[%emt 0:00:14]} Rfe8 {[%emt 0:01:50]} 24. h4 {[%emt 0:03:31]} Ngxe5 {[%emt 0:
00:00]} 25. Nxe5 {[%emt 0:00:19]} Qxe5 {[%emt 0:03:21]} 26. Qd1 {[%emt 0:00:08]
} Qf6 {[%emt 0:00:48]} 27. Qe2 {[%emt 0:02:56]} Red8 {[%emt 0:06:28]} 28. Qg4 {
[%emt 0:10:29]} Ne5 {[%emt 0:02:34]} 29. Rxe5 {[%emt 0:00:25]} Bxe5 {[%emt 0:
00:00]} 30. Na4 {[%emt 0:00:38]} Bd6 {[%emt 0:05:59]} 31. Bxd6 {[%emt 0:00:13]}
Rxd6 {[%emt 0:00:06]} 32. Nc5 {[%emt 0:00:04]} Rdc6 {[%emt 0:01:53]} 33. Kg2 {
[%emt 0:01:02]} b6 {[%emt 0:04:07]} 34. Nxa6 {[%emt 0:00:19]} Rxc2 {[%emt 0:00:
00]} 35. Rf3 {[%emt 0:00:10]} Qe7 {[%emt 0:00:22]} 36. h5 {[%emt 0:00:46]} h6 {
[%emt 0:00:42]} 37. b5 {[%emt 0:00:19]} e5 {[%emt 0:01:04]} 38. Nb4 {[%emt 0:
00:00]} R2c4 {[%emt 0:04:57]} 39. Nxd5 {[%emt 0:00:06]} Qb7 {[%emt 0:00:18]}
40. Nf6+ {[%emt 0:00:31]} Kh8 {[%emt 0:01:14]} 41. Qf5 {[%emt 0:30:40]} gxf6 {
[%emt 0:30:08]} 42. Qxf6+ {[%emt 0:00:03]} Kg8 {[%emt 0:00:00]} 43. Qxh6 {
[%emt 0:00:00]} Rg4 {[%emt 0:00:00]} 44. Kh3 {[%emt 0:00:00]} Qxf3 {[%emt 0:00:
00]} 0-1